[Event "Late Titled Tuesday Blitz February 8 2022"]
[White "Dobre, Claudiu-Cristian"]
[Black "Zhurbinsky, David"]
[WhiteFideId "1211854"]
[BlackFideId "2072904"]
[WhiteElo "2207"]
[BlackElo "2560"]
[Result "1-0"]
[Round "11"]
[TimeControl "180+1"]
[Date "2022.02.09"]
[WhiteClock "0:00:19"]
[BlackClock "0:00:09"]

1. c4 {[%clk 0:03:00]}  Nf6 {[%clk 0:02:59]} 2. Nc3 {[%clk 0:03:00]}  e6 {[%clk 0:02:59]} 3. e4 {[%clk 0:03:00]}  d5 {[%clk 0:03:00]} 4. e5 {[%clk 0:03:00]}  d4 {[%clk 0:03:01]} 5. exf6 {[%clk 0:03:00]}  dxc3 {[%clk 0:03:02]} 6. fxg7 {[%clk 0:03:00]}  cxd2+ {[%clk 0:02:55]} 7. Qxd2 {[%clk 0:03:01]}  Qxd2+ {[%clk 0:02:54]} 8. Bxd2 {[%clk 0:03:01]}  Bxg7 {[%clk 0:02:54]} 9. O-O-O {[%clk 0:03:01]}  Nc6 {[%clk 0:02:54]} 10. Nf3 {[%clk 0:03:02]}  Bd7 {[%clk 0:02:52]} 11. Bd3 {[%clk 0:02:59]}  O-O-O {[%clk 0:02:52]} 12. Bg5 {[%clk 0:02:48]}  f6 {[%clk 0:02:50]} 13. Be3 {[%clk 0:02:48]}  e5 {[%clk 0:02:47]} 14. Nh4 {[%clk 0:02:46]}  Ne7 {[%clk 0:02:42]} 15. Bc5 {[%clk 0:02:46]}  Bh6+ {[%clk 0:02:25]} 16. Kc2 {[%clk 0:02:45]}  Nc6 {[%clk 0:02:25]} 17. Nf5 {[%clk 0:02:32]}  Bxf5 {[%clk 0:02:21]} 18. Bxf5+ {[%clk 0:02:31]}  Kb8 {[%clk 0:02:22]} 19. Rxd8+ {[%clk 0:02:24]}  Rxd8 {[%clk 0:02:23]} 20. Rd1 {[%clk 0:02:23]}  Rg8 {[%clk 0:01:52]} 21. g3 {[%clk 0:02:20]}  b6 {[%clk 0:01:50]} 22. Be3 {[%clk 0:02:15]}  Bxe3 {[%clk 0:01:46]} 23. fxe3 {[%clk 0:02:14]}  Rg7 {[%clk 0:01:41]} 24. Be4 {[%clk 0:01:57]}  Nb4+ {[%clk 0:01:19]} 25. Kb3 {[%clk 0:01:51]}  c5 {[%clk 0:01:19]} 26. a3 {[%clk 0:01:36]}  Na6 {[%clk 0:01:19]} 27. Rd8+ {[%clk 0:01:26]}  Kc7 {[%clk 0:01:19]} 28. Rh8 {[%clk 0:01:26]}  Rg4 {[%clk 0:00:39]} 29. Rxh7+ {[%clk 0:01:20]}  Kd6 {[%clk 0:00:39]} 30. Bf5 {[%clk 0:01:18]}  Rg5 {[%clk 0:00:38]} 31. g4 {[%clk 0:01:11]}  Nb8 {[%clk 0:00:35]} 32. Rxa7 {[%clk 0:01:08]}  Rg8 {[%clk 0:00:28]} 33. Rf7 {[%clk 0:01:04]}  Rh8 {[%clk 0:00:23]} 34. Rxf6+ {[%clk 0:01:04]}  Ke7 {[%clk 0:00:22]} 35. Re6+ {[%clk 0:01:00]}  Kf7 {[%clk 0:00:22]} 36. Rxb6 {[%clk 0:01:00]}  Ke7 {[%clk 0:00:18]} 37. g5 {[%clk 0:00:57]}  Rf8 {[%clk 0:00:17]} 38. e4 {[%clk 0:00:56]}  Rh8 {[%clk 0:00:17]} 39. h4 {[%clk 0:00:55]}  Rd8 {[%clk 0:00:16]} 40. h5 {[%clk 0:00:54]}  Kf7 {[%clk 0:00:17]} 41. h6 {[%clk 0:00:53]}  Kg8 {[%clk 0:00:17]} 42. g6 {[%clk 0:00:51]}  Re8 {[%clk 0:00:14]} 43. Be6+ {[%clk 0:00:47]}  Kh8 {[%clk 0:00:14]} 44. g7+ {[%clk 0:00:46]}  Kh7 {[%clk 0:00:14]} 45. Bf5+ {[%clk 0:00:44]}  Kg8 {[%clk 0:00:11]} 46. Rb7 {[%clk 0:00:44]}  Nd7 {[%clk 0:00:10]} 47. h7+ {[%clk 0:00:40]}  Kxg7 {[%clk 0:00:09]} 48. Rxd7+ {[%clk 0:00:41]}  Kh8 {[%clk 0:00:10]} 49. Rd5 {[%clk 0:00:39]}  Rb8+ {[%clk 0:00:10]} 50. Kc3 {[%clk 0:00:39]}  Re8 {[%clk 0:00:10]} 51. Rxc5 {[%clk 0:00:39]}  Rd8 {[%clk 0:00:09]} 52. Rc8 {[%clk 0:00:38]}  Rxc8 {[%clk 0:00:09]} 53. Bxc8 {[%clk 0:00:38]}  Kg7 {[%clk 0:00:10]} 54. a4 {[%clk 0:00:39]}  Kg6 {[%clk 0:00:10]} 55. h8=Q {[%clk 0:00:36]}  Kf7 {[%clk 0:00:11]} 56. Bf5 {[%clk 0:00:32]}  Ke7 {[%clk 0:00:10]} 57. c5 {[%clk 0:00:30]}  Kf7 {[%clk 0:00:11]} 58. Qxe5 {[%clk 0:00:21]}  Kf8 {[%clk 0:00:10]} 59. Qf6+ {[%clk 0:00:20]}  Ke8 {[%clk 0:00:08]} 60. Qg7 {[%clk 0:00:19]}  Kd8 {[%clk 0:00:09]} 61. Qd7# {[%clk 0:00:19]} 1-0


[Site "https://www.chess.com"]

[Event "Late Titled Tuesday Blitz February 8 2022"]
[White "Domingo Nunez, Alejandro"]
[Black "Mortazavi, Ali"]
[WhiteFideId "22245561"]
[BlackFideId "401323"]
[WhiteElo "2215"]
[BlackElo "2339"]
[Result "0-1"]
[Round "11"]
[TimeControl "180+1"]
[Date "2022.02.09"]
[WhiteClock "0:00:29"]
[BlackClock "0:00:30"]

1. Nf3 {[%clk 0:03:00]}  Nf6 {[%clk 0:02:59]} 2. g3 {[%clk 0:02:51]}  g6 {[%clk 0:02:59]} 3. b3 {[%clk 0:02:52]}  Bg7 {[%clk 0:03:00]} 4. Bb2 {[%clk 0:02:52]}  O-O {[%clk 0:03:00]} 5. Bg2 {[%clk 0:02:53]}  d6 {[%clk 0:03:01]} 6. d4 {[%clk 0:02:54]}  a5 {[%clk 0:03:00]} 7. a4 {[%clk 0:02:53]}  c6 {[%clk 0:02:58]} 8. O-O {[%clk 0:02:54]}  Na6 {[%clk 0:02:59]} 9. Re1 {[%clk 0:02:54]}  Nd7 {[%clk 0:02:55]} 10. e4 {[%clk 0:02:54]}  e5 {[%clk 0:02:56]} 11. dxe5 {[%clk 0:02:52]}  Nxe5 {[%clk 0:02:47]} 12. Nd4 {[%clk 0:02:52]}  Qb6 {[%clk 0:02:38]} 13. Kh1 {[%clk 0:02:49]}  Ng4 {[%clk 0:02:34]} 14. Qd2 {[%clk 0:02:47]}  c5 {[%clk 0:02:18]} 15. h3 {[%clk 0:02:47]}  Nh6 {[%clk 0:01:56]} 16. Nc3 {[%clk 0:02:28]}  cxd4 {[%clk 0:01:50]} 17. Nd5 {[%clk 0:02:29]}  Qc5 {[%clk 0:01:46]} 18. Ba3 {[%clk 0:02:28]}  Nb4 {[%clk 0:01:43]} 19. g4 {[%clk 0:02:09]}  Kh8 {[%clk 0:01:36]} 20. Rad1 {[%clk 0:01:58]}  Be6 {[%clk 0:01:32]} 21. Nf4 {[%clk 0:01:21]}  Rac8 {[%clk 0:01:24]} 22. Rc1 {[%clk 0:01:21]}  Qc3 {[%clk 0:01:16]} 23. Qe2 {[%clk 0:01:21]}  Ng8 {[%clk 0:01:06]} 24. Qb5 {[%clk 0:01:17]}  Bh6 {[%clk 0:00:55]} 25. Ne2 {[%clk 0:01:13]}  Qc5 {[%clk 0:00:50]} 26. Qxb7 {[%clk 0:01:10]}  Bxc1 {[%clk 0:00:47]} 27. Rxc1 {[%clk 0:01:11]}  f6 {[%clk 0:00:43]} 28. c3 {[%clk 0:00:56]}  dxc3 {[%clk 0:00:39]} 29. Rxc3 {[%clk 0:00:53]}  Qxf2 {[%clk 0:00:39]} 30. Rxc8 {[%clk 0:00:30]}  Rxc8 {[%clk 0:00:35]} 31. Qb5 {[%clk 0:00:29]}  Rc2 {[%clk 0:00:30]} 0-1


[Site "https://www.chess.com"]

[Event "Late Titled Tuesday Blitz February 8 2022"]
[White "Garriga Cazorla, Pere"]
[Black "Holt, Conrad"]
[WhiteFideId "32011601"]
[BlackFideId "2034387"]
[WhiteElo "2458"]
[BlackElo "2586"]
[Result "0-1"]
[Round "11"]
[TimeControl "180+1"]
[Date "2022.02.08"]
[WhiteClock "0:00:03"]
[BlackClock "0:00:08"]

1. d4 {[%clk 0:03:00]}  d5 {[%clk 0:02:59]} 2. c4 {[%clk 0:03:01]}  c6 {[%clk 0:02:59]} 3. Nf3 {[%clk 0:03:01]}  Nf6 {[%clk 0:02:59]} 4. Nc3 {[%clk 0:03:02]}  dxc4 {[%clk 0:03:00]} 5. a4 {[%clk 0:03:02]}  Bf5 {[%clk 0:02:59]} 6. e3 {[%clk 0:03:03]}  e6 {[%clk 0:02:59]} 7. Bxc4 {[%clk 0:03:04]}  Nbd7 {[%clk 0:02:59]} 8. O-O {[%clk 0:03:04]}  Bb4 {[%clk 0:02:59]} 9. Nh4 {[%clk 0:03:04]}  Bg4 {[%clk 0:02:48]} 10. f3 {[%clk 0:03:04]}  Bh5 {[%clk 0:02:48]} 11. g4 {[%clk 0:03:04]}  Nd5 {[%clk 0:02:48]} 12. Ng2 {[%clk 0:03:04]}  Bg6 {[%clk 0:02:47]} 13. Na2 {[%clk 0:03:04]}  Be7 {[%clk 0:02:44]} 14. e4 {[%clk 0:03:01]}  N5b6 {[%clk 0:02:44]} 15. Bb3 {[%clk 0:03:01]}  a5 {[%clk 0:02:33]} 16. Nc3 {[%clk 0:02:59]}  c5 {[%clk 0:02:28]} 17. Be3 {[%clk 0:02:43]}  cxd4 {[%clk 0:02:24]} 18. Bxd4 {[%clk 0:02:43]}  O-O {[%clk 0:02:21]} 19. f4 {[%clk 0:02:31]}  e5 {[%clk 0:02:18]} 20. fxe5 {[%clk 0:02:31]}  Nc5 {[%clk 0:01:48]} 21. Ba2 {[%clk 0:02:20]}  Nxe4 {[%clk 0:01:41]} 22. Nf4 {[%clk 0:02:20]}  Nxc3 {[%clk 0:01:30]} 23. bxc3 {[%clk 0:02:19]}  Be4 {[%clk 0:01:30]} 24. Qe2 {[%clk 0:02:19]}  Bc6 {[%clk 0:01:26]} 25. Rab1 {[%clk 0:02:05]}  Nxa4 {[%clk 0:01:23]} 26. Rbd1 {[%clk 0:02:04]}  Qc7 {[%clk 0:01:14]} 27. Qe3 {[%clk 0:01:36]}  Bg5 {[%clk 0:01:00]} 28. Qg3 {[%clk 0:01:35]}  Rad8 {[%clk 0:00:40]} 29. h4 {[%clk 0:01:32]}  Bxf4 {[%clk 0:00:39]} 30. Qxf4 {[%clk 0:01:29]}  Bd5 {[%clk 0:00:36]} 31. Bxd5 {[%clk 0:00:29]}  Rxd5 {[%clk 0:00:34]} 32. h5 {[%clk 0:00:28]}  Nc5 {[%clk 0:00:25]} 33. h6 {[%clk 0:00:21]}  g6 {[%clk 0:00:22]} 34. Bxc5 {[%clk 0:00:19]}  Qxc5+ {[%clk 0:00:20]} 35. Kh2 {[%clk 0:00:19]}  Rxe5 {[%clk 0:00:16]} 36. Rd2 {[%clk 0:00:13]}  Qe7 {[%clk 0:00:12]} 37. Kg1 {[%clk 0:00:11]}  Re4 {[%clk 0:00:10]} 38. Qf3 {[%clk 0:00:10]}  f5 {[%clk 0:00:10]} 39. gxf5 {[%clk 0:00:07]}  Rxf5 {[%clk 0:00:10]} 40. Qd3 {[%clk 0:00:04]}  Rg4+ {[%clk 0:00:09]} 41. Rg2 {[%clk 0:00:03]}  Qc5+ {[%clk 0:00:08]} 42. Kh2 {[%clk 0:00:03]}  Rh5+ {[%clk 0:00:08]} 0-1


[Site "https://www.chess.com"]

[Event "Late Titled Tuesday Blitz February 8 2022"]
[White "Gerbelli Neto, Eduardo"]
[Black "Jaskolka, Tomasz"]
[WhiteFideId "2103281"]
[BlackFideId "1170791"]
[WhiteElo "2178"]
[BlackElo "2054"]
[Result "0-1"]
[Round "11"]
[TimeControl "180+1"]
[Date "2022.02.09"]
[WhiteClock "0:01:03"]
[BlackClock "0:01:23"]

1. e4 {[%clk 0:03:00]}  c5 {[%clk 0:02:59]} 2. Nc3 {[%clk 0:03:01]}  e6 {[%clk 0:02:59]} 3. f4 {[%clk 0:03:01]}  d5 {[%clk 0:02:59]} 4. Nf3 {[%clk 0:03:01]}  Nf6 {[%clk 0:02:59]} 5. Bb5+ {[%clk 0:03:00]}  Bd7 {[%clk 0:02:57]} 6. Qe2 {[%clk 0:02:57]}  dxe4 {[%clk 0:02:54]} 7. Nxe4 {[%clk 0:02:52]}  Nxe4 {[%clk 0:02:54]} 8. Bxd7+ {[%clk 0:02:52]}  Qxd7 {[%clk 0:02:55]} 9. Qxe4 {[%clk 0:02:52]}  Nc6 {[%clk 0:02:55]} 10. Ne5 {[%clk 0:02:50]}  Nxe5 {[%clk 0:02:54]} 11. fxe5 {[%clk 0:02:51]}  Be7 {[%clk 0:02:52]} 12. d3 {[%clk 0:02:44]}  O-O {[%clk 0:02:52]} 13. O-O {[%clk 0:02:43]}  b5 {[%clk 0:02:47]} 14. Be3 {[%clk 0:02:38]}  Rac8 {[%clk 0:02:46]} 15. Qg4 {[%clk 0:02:32]}  f5 {[%clk 0:02:41]} 16. Qg3 {[%clk 0:02:14]}  c4 {[%clk 0:02:35]} 17. d4 {[%clk 0:02:13]}  Qd5 {[%clk 0:02:31]} 18. c3 {[%clk 0:02:10]}  a5 {[%clk 0:02:31]} 19. a3 {[%clk 0:02:03]}  b4 {[%clk 0:02:30]} 20. axb4 {[%clk 0:02:04]}  axb4 {[%clk 0:02:31]} 21. Ra7 {[%clk 0:02:01]}  Rf7 {[%clk 0:02:29]} 22. Bg5 {[%clk 0:01:38]}  bxc3 {[%clk 0:02:06]} 23. bxc3 {[%clk 0:01:31]}  Bxg5 {[%clk 0:01:38]} 24. Rxf7 {[%clk 0:01:31]}  Kxf7 {[%clk 0:01:37]} 25. Qxg5 {[%clk 0:01:31]}  Qe4 {[%clk 0:01:34]} 26. Ra1 {[%clk 0:01:23]}  Ra8 {[%clk 0:01:23]} 27. Rxa8 {[%clk 0:01:03]}  Qe1# {[%clk 0:01:23]} 0-1


[Site "https://www.chess.com"]

[Event "Late Titled Tuesday Blitz February 8 2022"]
[White "Golubka, Petro"]
[Black "Rustemov, Alexander"]
[WhiteFideId "14114224"]
[BlackFideId "4119002"]
[WhiteElo "2392"]
[BlackElo "2818"]
[Result "1-0"]
[Round "11"]
[TimeControl "180+1"]
[Date "2022.02.08"]
[WhiteClock "0:00:28"]
[BlackClock "0:00:08"]

1. d4 {[%clk 0:03:00]}  d5 {[%clk 0:02:57]} 2. a3 {[%clk 0:03:01]}  Nc6 {[%clk 0:02:50]} 3. Bf4 {[%clk 0:02:59]}  f6 {[%clk 0:02:50]} 4. e3 {[%clk 0:02:56]}  e5 {[%clk 0:02:49]} 5. Bg3 {[%clk 0:02:55]}  Be6 {[%clk 0:02:40]} 6. dxe5 {[%clk 0:02:50]}  Nxe5 {[%clk 0:02:33]} 7. Nc3 {[%clk 0:02:46]}  c6 {[%clk 0:02:31]} 8. Bxe5 {[%clk 0:02:41]}  fxe5 {[%clk 0:02:30]} 9. Qh5+ {[%clk 0:02:41]}  Kd7 {[%clk 0:02:01]} 10. Qxe5 {[%clk 0:02:42]}  Nf6 {[%clk 0:02:01]} 11. Nf3 {[%clk 0:02:41]}  Bd6 {[%clk 0:02:01]} 12. Qd4 {[%clk 0:02:36]}  Qe7 {[%clk 0:01:55]} 13. Be2 {[%clk 0:02:23]}  Kc7 {[%clk 0:01:54]} 14. O-O {[%clk 0:02:09]}  Rhe8 {[%clk 0:01:54]} 15. Rad1 {[%clk 0:01:59]}  a6 {[%clk 0:01:50]} 16. e4 {[%clk 0:01:52]}  dxe4 {[%clk 0:01:20]} 17. Nxe4 {[%clk 0:01:50]}  Nxe4 {[%clk 0:01:16]} 18. Qxe4 {[%clk 0:01:51]}  Bd5 {[%clk 0:01:11]} 19. Qxe7+ {[%clk 0:01:50]}  Rxe7 {[%clk 0:01:12]} 20. Nd4 {[%clk 0:01:42]}  Rae8 {[%clk 0:01:07]} 21. Bd3 {[%clk 0:01:23]}  g6 {[%clk 0:01:05]} 22. c3 {[%clk 0:01:14]}  b5 {[%clk 0:01:02]} 23. b4 {[%clk 0:01:06]}  Kb6 {[%clk 0:01:01]} 24. Nc2 {[%clk 0:00:59]}  Be5 {[%clk 0:00:59]} 25. Nd4 {[%clk 0:00:59]}  a5 {[%clk 0:00:58]} 26. g3 {[%clk 0:00:56]}  Bf6 {[%clk 0:00:50]} 27. h4 {[%clk 0:00:54]}  axb4 {[%clk 0:00:48]} 28. axb4 {[%clk 0:00:55]}  Ra8 {[%clk 0:00:47]} 29. Rc1 {[%clk 0:00:45]}  Ra3 {[%clk 0:00:46]} 30. Rfd1 {[%clk 0:00:44]}  Rea7 {[%clk 0:00:38]} 31. Bf1 {[%clk 0:00:40]}  Ra2 {[%clk 0:00:31]} 32. Nxb5 {[%clk 0:00:38]}  cxb5 {[%clk 0:00:14]} 33. Rxd5 {[%clk 0:00:37]}  Kc7 {[%clk 0:00:13]} 34. Rc5+ {[%clk 0:00:37]}  Kd6 {[%clk 0:00:11]} 35. Rd1+ {[%clk 0:00:37]}  Ke7 {[%clk 0:00:12]} 36. Rxb5 {[%clk 0:00:36]}  Bxc3 {[%clk 0:00:09]} 37. Rb8 {[%clk 0:00:34]}  Rb2 {[%clk 0:00:09]} 38. b5 {[%clk 0:00:31]}  Raa2 {[%clk 0:00:09]} 39. Rd3 {[%clk 0:00:31]}  Ba5 {[%clk 0:00:07]} 40. Re3+ {[%clk 0:00:29]}  Kd6 {[%clk 0:00:07]} 41. Rf8 {[%clk 0:00:24]}  Bb6 {[%clk 0:00:05]} 42. Rf6+ {[%clk 0:00:23]}  Kc5 {[%clk 0:00:06]} 43. Rc6+ {[%clk 0:00:22]}  Kb4 {[%clk 0:00:03]} 44. Rxb6 {[%clk 0:00:23]}  Rxf2 {[%clk 0:00:03]} 45. Re4+ {[%clk 0:00:21]}  Kc5 {[%clk 0:00:03]} 46. Rc6+ {[%clk 0:00:21]}  Kd5 {[%clk 0:00:03]} 47. Ree6 {[%clk 0:00:19]}  Rf8 {[%clk 0:00:03]} 48. Red6+ {[%clk 0:00:19]}  Ke5 {[%clk 0:00:03]} 49. Rd1 {[%clk 0:00:19]}  Rb2 {[%clk 0:00:03]} 50. Re1+ {[%clk 0:00:19]}  Kd4 {[%clk 0:00:03]} 51. Rd6+ {[%clk 0:00:19]}  Kc3 {[%clk 0:00:03]} 52. Rc6+ {[%clk 0:00:19]}  Kd2 {[%clk 0:00:04]} 53. Rce6 {[%clk 0:00:19]}  Rb4 {[%clk 0:00:03]} 54. R6e2+ {[%clk 0:00:19]}  Kc3 {[%clk 0:00:04]} 55. Rc1+ {[%clk 0:00:19]}  Kb3 {[%clk 0:00:03]} 56. Rb1+ {[%clk 0:00:19]}  Kc3 {[%clk 0:00:04]} 57. Rxb4 {[%clk 0:00:19]}  Kxb4 {[%clk 0:00:04]} 58. b6 {[%clk 0:00:20]}  Kc5 {[%clk 0:00:04]} 59. b7 {[%clk 0:00:20]}  Rb8 {[%clk 0:00:04]} 60. Rb2 {[%clk 0:00:21]}  Kd6 {[%clk 0:00:04]} 61. Bg2 {[%clk 0:00:21]}  Kc7 {[%clk 0:00:04]} 62. Bf3 {[%clk 0:00:21]}  Rf8 {[%clk 0:00:04]} 63. Kg2 {[%clk 0:00:22]}  Kb8 {[%clk 0:00:04]} 64. g4 {[%clk 0:00:22]}  h6 {[%clk 0:00:04]} 65. Kg3 {[%clk 0:00:23]}  g5 {[%clk 0:00:04]} 66. hxg5 {[%clk 0:00:23]}  hxg5 {[%clk 0:00:05]} 67. Rb5 {[%clk 0:00:22]}  Rg8 {[%clk 0:00:05]} 68. Rf5 {[%clk 0:00:23]}  Kc7 {[%clk 0:00:04]} 69. Rc5+ {[%clk 0:00:22]}  Kb8 {[%clk 0:00:05]} 70. Rc8+ {[%clk 0:00:23]}  Rxc8 {[%clk 0:00:04]} 71. bxc8=Q+ {[%clk 0:00:24]}  Kxc8 {[%clk 0:00:04]} 72. Be4 {[%clk 0:00:25]}  Kd7 {[%clk 0:00:05]} 73. Bf5+ {[%clk 0:00:25]}  Kd6 {[%clk 0:00:05]} 74. Kf3 {[%clk 0:00:26]}  Ke5 {[%clk 0:00:06]} 75. Ke3 {[%clk 0:00:27]}  Kf6 {[%clk 0:00:06]} 76. Ke4 {[%clk 0:00:28]}  Kf7 {[%clk 0:00:07]} 77. Ke5 {[%clk 0:00:28]}  Ke7 {[%clk 0:00:08]} 78. Be6 {[%clk 0:00:28]} 1-0


[Site "https://www.chess.com"]

[Event "Late Titled Tuesday Blitz February 8 2022"]
[White "Jaferian, Koosha"]
[Black "Jarocka, Liwia"]
[WhiteFideId "12507440"]
[BlackFideId "21807558"]
[WhiteElo "2027"]
[BlackElo "1896"]
[Result "1-0"]
[Round "11"]
[TimeControl "180+1"]
[Date "2022.02.09"]
[WhiteClock "0:00:24"]
[BlackClock "0:01:11"]

1. Nf3 {[%clk 0:03:00]}  b6 {[%clk 0:02:59]} 2. g3 {[%clk 0:03:00]}  Bb7 {[%clk 0:02:59]} 3. Bg2 {[%clk 0:03:01]}  g6 {[%clk 0:02:59]} 4. d4 {[%clk 0:02:58]}  Bg7 {[%clk 0:02:59]} 5. b3 {[%clk 0:02:58]}  Nf6 {[%clk 0:02:59]} 6. Bb2 {[%clk 0:02:59]}  O-O {[%clk 0:03:00]} 7. O-O {[%clk 0:02:59]}  d5 {[%clk 0:03:00]} 8. c4 {[%clk 0:03:00]}  Nbd7 {[%clk 0:03:01]} 9. cxd5 {[%clk 0:03:00]}  Bxd5 {[%clk 0:03:00]} 10. Nbd2 {[%clk 0:03:00]}  c5 {[%clk 0:02:59]} 11. Rc1 {[%clk 0:02:59]}  Rc8 {[%clk 0:02:58]} 12. e3 {[%clk 0:02:51]}  cxd4 {[%clk 0:02:54]} 13. Nxd4 {[%clk 0:02:51]}  Bxg2 {[%clk 0:02:54]} 14. Kxg2 {[%clk 0:02:52]}  Nc5 {[%clk 0:02:53]} 15. Qe2 {[%clk 0:02:46]}  Qd5+ {[%clk 0:02:50]} 16. Kg1 {[%clk 0:02:46]}  Rfd8 {[%clk 0:02:49]} 17. Rfd1 {[%clk 0:02:43]}  e5 {[%clk 0:02:46]} 18. Nb5 {[%clk 0:02:39]}  a6 {[%clk 0:02:34]} 19. Nc3 {[%clk 0:02:39]}  Qd3 {[%clk 0:02:34]} 20. Qe1 {[%clk 0:02:32]}  Qf5 {[%clk 0:02:28]} 21. Nc4 {[%clk 0:02:30]}  Nd3 {[%clk 0:02:27]} 22. Rxd3 {[%clk 0:02:26]}  Rxd3 {[%clk 0:02:26]} 23. Nxb6 {[%clk 0:02:23]}  Rcd8 {[%clk 0:02:23]} 24. Nc4 {[%clk 0:02:16]}  Qh5 {[%clk 0:02:17]} 25. h4 {[%clk 0:01:39]}  g5 {[%clk 0:02:13]} 26. hxg5 {[%clk 0:01:39]}  Ng4 {[%clk 0:02:09]} 27. Kg2 {[%clk 0:01:01]}  Qh2+ {[%clk 0:02:04]} 28. Kf3 {[%clk 0:01:01]}  f5 {[%clk 0:01:58]} 29. gxf6 {[%clk 0:00:37]}  Nxf6 {[%clk 0:01:54]} 30. Qh1 {[%clk 0:00:33]}  e4+ {[%clk 0:01:49]} 31. Ke2 {[%clk 0:00:30]}  Qxh1 {[%clk 0:01:25]} 32. Rxh1 {[%clk 0:00:31]}  Ng4 {[%clk 0:01:23]} 33. Nxe4 {[%clk 0:00:28]}  Bxb2 {[%clk 0:01:20]} 34. Nxb2 {[%clk 0:00:28]}  R3d5 {[%clk 0:01:16]} 35. Rh4 {[%clk 0:00:26]}  Ne5 {[%clk 0:01:15]} 36. Nf6+ {[%clk 0:00:26]}  Kg7 {[%clk 0:01:13]} 37. Nxd5 {[%clk 0:00:27]}  Rxd5 {[%clk 0:01:13]} 38. Rd4 {[%clk 0:00:26]}  Ra5 {[%clk 0:01:12]} 39. Na4 {[%clk 0:00:26]}  Nc6 {[%clk 0:01:12]} 40. Rd7+ {[%clk 0:00:24]}  Kg6 {[%clk 0:01:11]} 41. Rd6+ {[%clk 0:00:24]} 1-0


[Site "https://www.chess.com"]

[Event "Late Titled Tuesday Blitz February 8 2022"]
[White "Kim, Sergey"]
[Black "Villegas, Pierre"]
[WhiteFideId "13700570"]
[BlackFideId "654183"]
[WhiteElo "2611"]
[BlackElo "2410"]
[Result "0-1"]
[Round "11"]
[TimeControl "180+1"]
[Date "2022.02.09"]
[WhiteClock "0:00:11"]
[BlackClock "0:00:12"]

1. d4 {[%clk 0:02:56]}  d5 {[%clk 0:02:56]} 2. c4 {[%clk 0:02:56]}  e6 {[%clk 0:02:57]} 3. Nc3 {[%clk 0:02:56]}  a6 {[%clk 0:02:57]} 4. cxd5 {[%clk 0:02:54]}  exd5 {[%clk 0:02:58]} 5. Nf3 {[%clk 0:02:55]}  Nf6 {[%clk 0:02:57]} 6. Bg5 {[%clk 0:02:54]}  Be6 {[%clk 0:02:57]} 7. e3 {[%clk 0:02:54]}  Nbd7 {[%clk 0:02:56]} 8. Bd3 {[%clk 0:02:54]}  Bd6 {[%clk 0:02:56]} 9. Rc1 {[%clk 0:02:54]}  c6 {[%clk 0:02:56]} 10. Bb1 {[%clk 0:02:53]}  Qc7 {[%clk 0:02:44]} 11. a3 {[%clk 0:02:50]}  O-O {[%clk 0:02:26]} 12. Bh4 {[%clk 0:02:38]}  Bg4 {[%clk 0:02:20]} 13. Bg3 {[%clk 0:02:31]}  Bh5 {[%clk 0:02:16]} 14. Ne2 {[%clk 0:02:17]}  Bg6 {[%clk 0:02:08]} 15. Bxg6 {[%clk 0:02:09]}  hxg6 {[%clk 0:02:09]} 16. Nf4 {[%clk 0:02:05]}  Qa5+ {[%clk 0:01:58]} 17. Nd2 {[%clk 0:01:54]}  Ne4 {[%clk 0:01:52]} 18. Nd3 {[%clk 0:01:47]}  Ndf6 {[%clk 0:01:41]} 19. Bxd6 {[%clk 0:01:42]}  Nxd6 {[%clk 0:01:40]} 20. O-O {[%clk 0:01:41]}  Qd8 {[%clk 0:01:30]} 21. Ne5 {[%clk 0:01:39]}  Nd7 {[%clk 0:01:25]} 22. Qb3 {[%clk 0:01:36]}  Qe7 {[%clk 0:01:21]} 23. Ndf3 {[%clk 0:01:30]}  Nf6 {[%clk 0:01:16]} 24. Qb6 {[%clk 0:01:26]}  Nfe4 {[%clk 0:01:15]} 25. Rc2 {[%clk 0:01:23]}  g5 {[%clk 0:01:15]} 26. h3 {[%clk 0:01:20]}  Qe6 {[%clk 0:01:09]} 27. b3 {[%clk 0:01:06]}  f6 {[%clk 0:01:04]} 28. Nd3 {[%clk 0:01:03]}  g4 {[%clk 0:00:54]} 29. hxg4 {[%clk 0:01:02]}  Qxg4 {[%clk 0:00:55]} 30. Nf4 {[%clk 0:01:00]}  g5 {[%clk 0:00:46]} 31. Nd3 {[%clk 0:00:57]}  Rf7 {[%clk 0:00:43]} 32. Nc5 {[%clk 0:00:36]}  Rh7 {[%clk 0:00:36]} 33. Re1 {[%clk 0:00:31]}  Qh5 {[%clk 0:00:16]} 34. Kf1 {[%clk 0:00:30]}  g4 {[%clk 0:00:16]} 35. Ng1 {[%clk 0:00:27]}  Qh2 {[%clk 0:00:14]} 36. Nxe4 {[%clk 0:00:20]}  Nxe4 {[%clk 0:00:14]} 37. Qa5 {[%clk 0:00:18]}  Rh5 {[%clk 0:00:12]} 38. Qb4 {[%clk 0:00:15]}  Rf5 {[%clk 0:00:12]} 39. Qxb7 {[%clk 0:00:11]}  Ng3# {[%clk 0:00:12]} 0-1


[Site "https://www.chess.com"]